Workbook

Sheet 食べ物3
G3: ハンバーガー
B9: 牛乳と あと一つ好きな食べ物をとってゴールしよう

Sheet 食べ物_ハンバーガー (hidden)
G2: プログラム
G3: まっすぐ進み牛乳をとる
F4: ① | H4: 度 回転させる
G5: まっすぐ進む
F6: ② | H6: 度 回転させる
G7: まっすぐ進む
B9: 鳥ロボット「ピッピちゃん」に取りに行かせよう。
M41: 実測
N42: x座標 | O42: ｙ座標 | P42: ｘ増減 | Q42: ｙ増減
L43: スタート | N43: 88 | O43: 238.5
L44: 牛乳 | M44: 1 | N44: 88 | O44: 50 | P44: =N44-N43 -> 0 | Q44: =O44-O43 -> -188.5
L45: ハンバーガー | M45: 2 | N45: 467.8 | O45: 50 | P45: =N45-N44 -> 379.8 | Q45: =O45-O44 -> 0
L46: ゴール | M46: 3 | N46: 277.1 | O46: 238.5 | P46: -190.7 | Q46: 188.5
K48: 待ち時間（秒） | L48: 0.5 | M48: 計算（角度で）
N49: x座標 | O49: ｙ座標 | P49: ｘ増減 | Q49: ｙ増減
K50: 移動直線距離 | L50: 角度 | N50: =N43 -> 88 | O50: =O43 -> 238.5
K51: 0 | L51: 0 | M51: 1 | N51: =N44 -> 88 | O51: =O44 -> 50 | P51: =N51-N50 -> 0 | Q51: =O51-O50 -> -188.5
I52: この行は sin→X座標 cos→Y座標 下は逆 | K52: 379.8 | L52: =選んだ角度_ハン1 -> 0 | M52: 2 | N52: =$N51+$K52*SIN(RADIANS($L52)) -> 88 | O52: =$O51-$K52*COS(RADIANS($L52)) -> -329.8 | P52: =N52-N51 -> 0 | Q52: -379.8
I53: =379.8/2*SQRT(2) | J53: ⇒ | K53: 268.6 | L53: =選んだ角度_ハン2 -> 0 | M53: 3 | N53: =$N52+$K53*COS(RADIANS($L53)) -> 356.6 | O53: =$O52+$K53*SIN(RADIANS($L53)) -> -329.8 | P53: 268.6 | Q53: 0

Sheet 食べ物_カレーライス (hidden)
G2: プログラム
G3: まっすぐ進み牛乳をとる
F4: ① | H4: 度 回転させる
G5: まっすぐ進む
F6: ② | H6: 度 回転させる
G7: まっすぐ進む
B10: 鳥ロボット「ピッピちゃん」に取りに行かせよう。
N38: 408.7534,239.285
M41: 実測
N42: x座標 | O42: ｙ座標 | P42: ｘ増減 | Q42: ｙ増減
L43: スタート | N43: 78 | O43: 238.5
L44: 牛乳 | M44: 1 | N44: 78 | O44: 50 | P44: =N44-N43 -> 0 | Q44: =O44-O43 -> -188.5
L45: カレーライス | M45: 2 | N45: 409 | O45: 239 | P45: =N45-N44 -> 331 | Q45: 189
L46: ゴール | M46: 3 | N46: 277.1 | O46: 238.5 | P46: -131.9 | Q46: -0.5
K48: 待ち時間（秒） | L48: 0.5 | M48: 計算（角度で）
N49: x座標 | O49: ｙ座標 | P49: ｘ増減 | Q49: ｙ増減
I50: 半径にあたる | J50: ⇒ | K50: 移動直線距離 | L50: 角度 | N50: =N43 -> 78 | O50: =O43 -> 238.5
K51: 0 | L51: 0 | M51: 1 | N51: =N44 -> 78 | O51: =O44 -> 50 | P51: =N51-N50 -> 0 | Q51: =O51-O50 -> -188.5
H52: この行は sin→X座標 cos→Y座標 下は逆 | I52: Y座標の差 ＝(236.1818-50.04708)*2 | J52: ⇒ | K52: =(236.1818-50.04708)*2 -> 372.26944 | L52: =選んだ角度_カレ1 -> 0 | M52: 2 | N52: =$N51+$K52*SIN(RADIANS($L52)) -> 78 | O52: =$O51-$K52*COS(RADIANS($L52)) -> -322.26944 | P52: =N52-N51 -> 0 | Q52: -372.26944
H53: X座標の差 409-276 は実際の距離で半径ではない | I53: Y座標の差 ＝(236.9651-163.2272)*2 | J53: ⇒ | K53: =(236.9651-163.2272)*2 -> 147.4758 | L53: =選んだ角度_カレ2 -> 0 | M53: 3 | N53: =$N52+$K53*COS(RADIANS($L53)) -> 225.4758 | O53: =$O52+$K53*SIN(RADIANS($L53+30)) -> -248.53154 | P53: 147.4758 | Q53: 73.7379
H55: =SQRT(3)/2 -> 0.8660254038 | I55: =SQRT(3)/2 √3/2の値 | K55: 式 | L55: =選んだ角度_カレ2 -> 0

Sheet 食べ物_ピザ (hidden)
G2: プログラム
G3: まっすぐ進み牛乳をとる
F4: ① | H4: 度 回転させる
G5: まっすぐ進む
F6: ② | H6: 度 回転させる
G7: まっすぐ進む
B10: 鳥ロボット「ピッピちゃん」に取りに行かせよう。
N38: 408.7534,239.285
M41: 実測
N42: x座標 | O42: ｙ座標 | P42: ｘ増減 | Q42: ｙ増減
L43: スタート | N43: 78 | O43: 238.5
L44: 牛乳 | M44: 1 | N44: 78 | O44: 50 | P44: =N44-N43 -> 0 | Q44: =O44-O43 -> -188.5
L45: ピザ | M45: 2 | N45: 200 | O45: 238 | P45: =N45-N44 -> 122 | Q45: 188
L46: ゴール | M46: 3 | N46: 277.1 | O46: 238.5 | P46: 77.1 | Q46: 0.5
K48: 待ち時間（秒） | L48: 0.5 | M48: 計算（角度で）
N49: x座標 | O49: ｙ座標 | P49: ｘ増減 | Q49: ｙ増減
I50: 半径にあたる | J50: ⇒ | K50: 移動直線距離 | L50: 角度 | N50: =N43 -> 78 | O50: =O43 -> 238.5
K51: 0 | L51: 0 | M51: 1 | N51: =N44 -> 78 | O51: =O44 -> 50 | P51: =N51-N50 -> 0 | Q51: =O51-O50 -> -188.5
H52: この行は sin→X座標 cos→Y座標 下は逆 | I52: Y座標の差 ＝(196.5715-87.87524)*2 | J52: ⇒ | K52: =(196.5715-87.87524)*2 -> 217.39252 | L52: =選んだ角度_ピザ1 -> 0 | M52: 2 | N52: =$N51+$K52*SIN(RADIANS($L52)) -> 78 | O52: =$O51-$K52*COS(RADIANS($L52)) -> -167.39252 | P52: =N52-N51 -> 0 | Q52: -217.39252
H53: X座標の差 が実際の距離で(半径/2)でもある | I53: X座標の差 ＝(277.1-200)*2 | J53: ⇒ | K53: =(277.1-200)*2 -> 154.2 | L53: =IF(ISNUMBER(選んだ角度_ピザ2),選んだ角度_ピザ2,-60) -> -60 | M53: 3 | N53: =$N52+$K53*COS(RADIANS($L53)) -> 155.1 | O53: =$O52+$K53*SIN(RADIANS($L53+60)) -> -167.39252 | P53: 77.1 | Q53: 0
H55: =SQRT(3)/2 -> 0.8660254038 | I55: =SQRT(3)/2 √3/2の値 | K55: 式 | L55: =選んだ角度_ピザ2 -> 0
